[Event "Svetozar Gligoric Masters 2022"]
[Site "Belgrade"]
[Date "2022.07.21"]
[Round "6.4"]
[White "Pranav Vijay"]
[Black "Samant Aditya S"]
[Result "0-1"]
[ECO "A07"]
[WhiteElo "2265"]
[BlackElo "2431"]
[Annotator "TA"]
[PlyCount "104"]
[EventDate "2022.07.18"]
[EventCountry "SRB"]
[SourceTitle "playchess.com"]
[Source "ChessBase"]
[SourceQuality "1"]
[TimeControl "40/5400+30:900+30"]

{[%evp 17,103,17,24,15,29,21,37,0,0,0,0,0,13,0,6,0,26,31,27,25,50,8,0,4,12,-83,-32,-40,-56,-43,-50,-66,0,0,0,0,0,0,0,0,0,0,0,0,0,0,0,0,38,37,37,37,37,21,24,4,56,0,0,0,0,0,0,-385,-378,-439,-418,-435,-429,-416,-436,-423,-418,-550,-551,-527,-495,-29971,-29970,-29979,-29978,-29993,-29994,-29994,-29993,-29998,-29999,-29999]} 1. Nf3 d5 2. g3 c6 3. Bg2 Bg4 4. O-O Nd7 5. d3 e5 6. Nbd2 Ngf6 7. e4 dxe4 8. dxe4 Bc5 9. h3 Bh5 10. a4 {A07: Réti Opening: New York and Capablanca Systems.} O-O 11. Qe1 Re8 12. Nc4 {White is slightly better.} b5 13. Na5 {[%cal Bc4a5,Ba5b3,Bb3d2][%mdl 32]} Qc7 14. Nh4 a6 15. Nb3 Bb6 16. Be3 {[#]} c5 $146 ({Predecessor:} 16... Bxe3 17. Qxe3 c5 18. axb5 axb5 19. c4 bxc4 20. Nd2 Nf8 21. Nxc4 Ne6 22. Nf5 Nd4 23. Qg5 Ne6 24. Qd2 Nd4 {½-½ (24) Romm,M (2445)-Muzyka,N (2335) ICCF email 2014}) 17. a5 Ba7 18. c4 $1 Nf8 {[%cal Bd7f8,Bf8e6,Be6d4][%mdl 32]} 19. Nd2 (19. cxb5 {feels hotter.} axb5 20. Nxc5 Bxc5 21. Rc1) 19... Ne6 20. f4 Nd4 21. Qf2 (21. Bxd4 $11 {keeps the balance.} cxd4 22. cxb5 axb5 23. g4) 21... Be2 {Black is much more active.} (21... Rad8 $17) 22. Rfc1 $15 bxc4 23. Nxc4 (23. Bxd4 $2 cxd4 24. Kh1 c3 25. Qxe2 cxb2 26. Rxc7 bxa1=Q+ $19) 23... Bxc4 24. Rxc4 Qb7 (24... Qd7 $15 25. Nf5 Rad8 26. fxe5 Rxe5 27. Nh6+ Kf8) 25. Nf5 $11 Nxf5 (25... Nxe4 26. Nd6 Qd5 27. Bxe4 $16) 26. exf5 e4 27. g4 Qb3 28. Rc3 Qb4 29. Rd1 {Inhibits Nd5. Black must now prevent g5.} Rad8 30. Rxd8 Rxd8 31. Bf1 Nd5 32. Rc4 {[%cal Bc3c4,Bc4e4,Be4e7,Be7b7][%mdl 32]} Qxa5 33. Rxe4 Nxe3 34. Qxe3 Kf8 {Inhibits Re8+.} 35. Re7 Bb8 {[%cal Ob8f4]} 36. Rb7 {White wants to mate with Qe7+.} Re8 {Prevents Qe7+.} (36... Bc7 $11) 37. Qd3 (37. Qb3 $14 Bc7 38. g5) 37... Bxf4 {...Qe1 is the strong threat.} 38. Qc4 {[%csl Gb7][%cal Rc4f7]} Bc7 $1 39. b4 {[%mdl 64] Deflection} ({But not} 39. Qxa6 $2 {[#]} Qe1 $1 40. Qa3 Qe5 41. Rxc7 Qxc7 $19) 39... Qa3 40. Bd3 $2 {[%mdl 8192]} (40. Qd3 $11 Qxd3 41. Bxd3) 40... Re7 $19 41. bxc5 {[#]} ({Avoid the trap} 41. Qxc5 $2 Qxd3 42. Qxe7+ Kxe7 $19) 41... Bh2+ $1 {[%mdl 512]} 42. Kxh2 {[%cal Oc4d4] White threatens Qd4! and mate.} Rxb7 {[%mdl 4096] Endgame KQR-KQB} 43. Qd5 {[%cal Rd5d8]} Qb2+ 44. Kg3 {[%cal Rd5d8]} Re7 {aiming for ...Re3+.} 45. Qd8+ Re8 46. Qd6+ Kg8 {( -> ...Re3+)} 47. Kh4 (47. Kf3 $19 Qd2 48. Qd4) 47... Qf2+ {Black mates.} 48. Kh5 Qe3 49. h4 g6+ 50. fxg6 Re5+ 51. g5 {[#]} Rxg5+ $3 {[%mdl 512]} 52. hxg5 (52. Kh6 Re5#) 52... Qh3# {Weighted Error Value: White=0.50/Black=0.07 (flawless)} 0-1

[Event "Svetozar Gligoric Masters 2022"]
[Site "Belgrade"]
[Date "2022.07.21"]
[Round "6.5"]
[White "Radovanovic, Nikola"]
[Black "Arjun Kalyan"]
[Result "1/2-1/2"]
[ECO "C26"]
[WhiteElo "2422"]
[BlackElo "2499"]
[Annotator "TA"]
[PlyCount "96"]
[EventDate "2022.07.18"]
[EventCountry "SRB"]
[SourceTitle "playchess.com"]
[Source "ChessBase"]
[SourceQuality "1"]
[TimeControl "40/5400+30:900+30"]

{[%evp 9,96,0,0,0,19,5,7,6,10,10,12,21,11,18,3,-5,-5,-8,6,4,3,0,0,11,13,0,0,0,0,0,0,0,0,0,0,0,0,0,0,0,0,-12,-4,-62,-49,-16,0,0,0,-11,-8,-9,8,8,8,10,37,60,41,49,43,47,50,31,34,27,27,27,27,27,27,27,27,19,19,19,19,26,26,8,8,8,8,8,10,0,0,0,0]} 1. e4 e5 2. Nc3 Nf6 3. d4 exd4 4. Qxd4 Nc6 5. Qd3 d5 6. Bf4 {[%cal Rc3d5] C26: Vienna Game: 2...Nf6, sidelines .} Nb4 {[#]} 7. Qd2 $146 ({Predecessor:} 7. Qe2 dxe4 8. a3 Nbd5 9. O-O-O c6 10. Bg5 Be7 11. Bxf6 Bxf6 12. Qxe4+ Qe7 13. Qxe7+ Nxe7 14. Ne4 Be5 15. g3 Bf5 {½-½ (15) Meskovs,N (2568)-Kantor,G (2533) Riga 2021}) 7... Nxe4 8. Nxe4 dxe4 9. Qxd8+ Kxd8 10. O-O-O+ Bd7 11. Bc4 Bd6 12. Bxd6 cxd6 13. Rxd6 Kc7 (13... Ke7 {keeps more tension.} 14. Rd4 f5 15. f3 Rhd8) 14. Rd2 f5 15. Nh3 Rae8 16. Rhd1 Bc8 17. Ng5 Re7 18. h4 Nc6 19. Nh3 Ne5 20. Bb3 Bd7 21. Nf4 Bc6 22. Bd5 Rhe8 23. Bxc6 bxc6 24. Re2 g6 {[%cal Bg7g6,Bg6g5][%mdl 32]} 25. Red2 h6 26. h5 (26. Rd4 $11) 26... g5 $15 27. Ng6 Nxg6 28. hxg6 $11 {[%mdl 4096] Endgame KRR-KRR} f4 29. Rd6 Rf8 30. g7 Rg8 31. Rxh6 Rgxg7 32. Rdd6 e3 33. Rxc6+ Kb7 34. fxe3 Rxe3 35. Rce6 Rg3 36. Re2 g4 37. Rf6 f3 38. gxf3 Rg1+ 39. Kd2 g3 40. Rfe6 {Threatens to win with Re7+.} Rf1 (40... g2 $2 41. Re7+ Rxe7 42. Rxe7+ Kc6 43. Rg7 $18) 41. Re7+ Rxe7 42. Rxe7+ {KR-KR} Kc6 43. Rg7 {[#] And now Rg6+ would win.} ({Don't go for} 43. Rxa7 $2 g2 44. Ra6+ (44. Rg7 $2 g1=Q $19) 44... Kb5 $19) 43... Rxf3 44. Rxa7 {Hoping for b3.} Rf2+ {The position is equal.} 45. Kd3 {Black must now prevent Rg7.} Rf3+ 46. Ke4 Rf2 47. Rg7 Rxc2 48. Rxg3 {[#] Threatening mate with Rc3+.} Rxb2 {Weighted Error Value: White=0.06 (flawless) /Black=0.02 (flawless)} 1/2-1/2

[Event "Svetozar Gligoric Masters 2022"]
[Site "Belgrade"]
[Date "2022.07.21"]
[Round "6.6"]
[White "Erdogmus, Yagiz Kaan"]
[Black "Maksimovic, Bojan"]
[Result "1/2-1/2"]
[ECO "B32"]
[WhiteElo "2373"]
[BlackElo "2465"]
[Annotator "TA"]
[PlyCount "102"]
[EventDate "2022.07.18"]
[EventCountry "SRB"]
[SourceTitle "playchess.com"]
[Source "ChessBase"]
[SourceQuality "1"]
[TimeControl "40/5400+30:900+30"]

{[%evp 10,102,34,28,24,15,42,36,47,45,49,50,52,44,40,40,40,40,56,40,40,40,40,34,38,31,26,27,33,33,33,32,27,27,31,28,37,17,38,8,8,8,8,8,8,8,8,8,8,0,0,0,8,8,8,8,8,8,8,8,8,0,8,0,2,0,0,0,0,0,0,0,0,0,0,0,0,0,0,0,0,0,0,0,0,0,0,0,20,0,0,0,0,0,0]} 1. e4 c5 2. Nf3 {[%cal Bg1f3,Bf3d4,Bd4b5,Bb5c3][%mdl 32]} Nc6 3. d4 cxd4 4. Nxd4 e5 5. Nb5 d6 6. c4 g6 {6...Be6 is becoming the main line. B32: Sicilian: Löwenthal and Kalashnikov Variations.} 7. Be3 {Strongly threatening N1c3.} a6 8. N5c3 {[#] Nd5 is the strong threat.} Bg7 {White is slightly better.} 9. Nd5 {Hoping for Bb6.} Nd4 $1 10. Nbc3 Nf6 {[#]} 11. Nxf6+ $146 ({Predecessor:} 11. Bxd4 Nxd5 12. Bxe5 Nxc3 13. Bxc3 Bxc3+ 14. bxc3 O-O 15. Bd3 Qc7 16. O-O Be6 17. Rb1 Rfc8 18. Re1 b5 19. cxb5 axb5 20. Bxb5 Rxa2 21. Re3 Qc5 22. Qd4 Qxb5 {0-1 (22) Burridge,R (1899)-Vercauteren,N (1691) ICCF email 2018}) 11... Bxf6 12. Nd5 Bg7 13. Bd3 Be6 14. O-O O-O 15. Bxd4 exd4 16. Qd2 Rc8 17. b4 Bxd5 18. exd5 a5 19. a3 Ra8 20. Rfb1 Qc7 21. g3 Ra7 22. Qc1 b6 23. Qb2 axb4 24. axb4 Rfa8 {The position is equal.} 25. Re1 h5 26. h4 Bf6 27. Kg2 Kg7 28. Rec1 Qd7 29. Re1 Ra4 30. Rec1 Qb7 31. Rxa4 Rxa4 32. Ra1 Qa8 33. Rxa4 Qxa4 $11 {[%mdl 4096] Endgame KQB-KQB} 34. Bc2 Qe8 {[%cal Od4d3] [#] Threatens to win with ...d3!} 35. Bd3 Qe1 36. Qa3 Qd2 37. c5 dxc5 38. bxc5 bxc5 39. d6 {Inhibits Be7.} g5 40. Bc4 {Intending Qa7 and mate.} Qc2 41. Qxc5 Qe4+ 42. Kg1 Qe1+ 43. Kg2 Qe4+ 44. Kg1 d3 45. Qc7 Qg6 {aiming for ...d2.} ({Don't take} 45... Qe1+ 46. Kg2 Qe4+ 47. Kh2 $14) 46. hxg5 ({Much worse is} 46. d7 d2 47. d8=Q Bxd8 $15) 46... Bxg5 {And now ...d2 would win.} 47. d7 d2 48. Qe5+ Qf6 49. Qxf6+ Bxf6 50. Be2 h4 51. gxh4 Bxh4 {Weighted Error Value: White=0.03 (flawless) /Black=0.03 (flawless)} 1/2-1/2

[Event "Svetozar Gligoric Masters 2022"]
[Site "Belgrade"]
[Date "2022.07.21"]
[Round "6.7"]
[White "Nitish Belurkar"]
[Black "Rohith Krishna S"]
[Result "0-1"]
[ECO "C97"]
[WhiteElo "2460"]
[BlackElo "2326"]
[Annotator "TA"]
[PlyCount "68"]
[EventDate "2022.07.18"]
[EventCountry "SRB"]
[SourceTitle "playchess.com"]
[Source "ChessBase"]
[SourceQuality "1"]
[TimeControl "40/5400+30:900+30"]

{[%evp 28,68,22,0,19,0,17,0,25,-41,-41,-52,-45,-34,0,-70,-12,-167,-168,-255,-254,-327,-320,-307,-300,-302,-299,-300,-282,-435,-440,-391,-374,-418,-368,-1559,-1706,-1670,-1593,-1632,-1551,-29985,-29986]} 1. e4 e5 2. Nf3 Nc6 3. Bb5 {[%cal Bf1b5,Bb5a4,Ba4b3][%mdl 32]} a6 4. Ba4 Nf6 5. O-O Be7 6. Re1 b5 7. Bb3 d6 8. c3 O-O 9. h3 Na5 {[%cal Bc6a5,Ba5b7,Bb7c5][%mdl 32]} 10. Bc2 c5 11. d4 Qc7 12. Nbd2 Rd8 13. d5 c4 14. Nf1 Nb7 15. Ng3 a5 {C97: Closed Ruy Lopez: Chigorin Defence: 11 d4 Qc7, sidelines.} 16. Bg5 Nc5 17. Qd2 Rb8 {[#] The position is equal.} 18. Nh4 $146 ({White should try} 18. b4 $11 axb4 19. cxb4) ({Predecessor:} 18. Nf5 Bxf5 19. exf5 h6 20. Be3 Nfe4 21. Qe2 Ng5 22. Nxg5 Bxg5 {½-½ (22) Cremer,J (2003)-Galkin,W (1924) Potsdam 2010}) 18... h6 $15 19. Bxh6 gxh6 20. Qxh6 {Threatens to win with Ngf5.} Nh7 $1 ({Don't do} 20... Ne8 21. Ngf5 Bxf5 22. Nxf5 $14) 21. Ngf5 (21. Nh5 $2 Bf8 22. Qe3 Qe7 $19) (21. Nhf5 $1 $11 Bf8 22. Qh5) 21... Bf6 ({Black should play} 21... Bf8 $1 $15 22. Qh5 b4) 22. g4 $2 {[#] This move loses the game for White.} (22. Re3 $11 Kh8 23. Rg3 Bxf5 24. Nxf5) 22... Kh8 $1 $19 23. f4 (23. Qh5 {was called for.}) 23... Rg8 {Hoping for ...Nd3.} 24. g5 exf4 25. g6 fxg6 26. Nxg6+ Rxg6+ 27. Qxg6 Bxf5 {The board is on fire.} 28. Qxf5 (28. exf5 $142 Rg8 29. Re8) 28... Be5 {...Rg8+ is the strong threat.} 29. Kh1 Rf8 30. Qh5 Qf7 31. Qf3 (31. Qxf7 Rxf7 32. Rg1) 31... Ng5 32. Qg4 {[#]} Qh7 $1 {[%csl LRe4,LRh3]} 33. Re2 (33. h4 Ngxe4) 33... f3 34. Rf1 Nxh3 {Weighted Error Value: White=1.14/Black=0.07 (flawless)} 0-1

[Event "Svetozar Gligoric Masters 2022"]
[Site "Belgrade"]
[Date "2022.07.21"]
[Round "6.8"]
[White "Ozer, Omer Faruk"]
[Black "Gagunashvili, Merab"]
[Result "0-1"]
[ECO "B08"]
[WhiteElo "2317"]
[BlackElo "2569"]
[Annotator "TA"]
[PlyCount "100"]
[EventDate "2022.07.18"]
[EventCountry "SRB"]
[SourceTitle "playchess.com"]
[Source "ChessBase"]
[SourceQuality "1"]
[TimeControl "40/5400+30:900+30"]

{[%evp 13,100,16,20,6,14,25,9,19,8,0,31,-8,0,0,0,0,-10,-19,-12,-7,-14,-13,-13,-27,-12,-14,-32,-28,-3,-104,-39,-39,-8,-87,-97,-114,-63,-58,0,0,144,132,106,0,101,69,85,93,268,295,263,278,286,148,293,112,181,0,288,0,160,179,161,169,154,14,6,-963,-868,-29964,-29965,-6474,-6179,-2655,-2389,-29979,-29980,-29980,-29981,-29981,-29982,-29982,-29980,-29980,-29981,-29984,-29979,-29988,-29988]} 1. e4 d6 2. d4 Nf6 3. Nc3 g6 4. Nf3 Bg7 5. h3 O-O 6. Be3 c6 7. Bd3 Qc7 8. O-O {B08: Pirc Defence: Classical System.} Nbd7 9. Qd2 e5 10. Rad1 {The position is equal.} Re8 11. Bh6 b5 {[#]} 12. dxe5 $146 ({Predecessor:} 12. Bxg7 Kxg7 13. Rfe1 Bb7 14. a3 a6 15. Bf1 Rad8 16. b4 exd4 17. Nxd4 h6 18. Nb3 {1-0 (34) O'Brien,J-Gerzadowicz,S USA 1988}) 12... dxe5 13. a4 a6 14. Ra1 {[%cal Ra4b5]} Bb7 15. b3 Nc5 16. Bxg7 Kxg7 17. b4 (17. axb5 cxb5 18. Rfc1 Bxe4 19. Nxe4 Ncxe4 20. Bxe4 Nxe4 $17) 17... Ne6 18. Ng5 Nxg5 19. Qxg5 c5 20. axb5 cxb4 21. Ne2 ({Avoid the trap} 21. Nd5 $2 Bxd5 22. exd5 e4 $19) (21. Rxa6 $1 $11 Rxa6 22. bxa6 bxc3 23. axb7) 21... h6 ({Don't take} 21... Nxe4 22. Bxe4 Bxe4 23. Ng3 Bxc2 24. Nh5+ Kf8 25. Nf6 $14) (21... Bxe4 $17 {Strongly threatening ...a5.} 22. Bxe4 Nxe4) 22. Qe3 $15 {[%cal Rb5a6]} a5 23. f4 (23. Ra2 $11) 23... Nd7 $17 24. Kh1 exf4 (24... Qc5 $17 25. Qg3 Nf6) 25. Rxf4 $15 Qc5 (25... Rad8 $15) 26. Nd4 $11 Qe7 (26... Re7 $11 {keeps the balance.}) 27. Raf1 $16 Ne5 {[#]} 28. Nf3 (28. Rf5 $3 $16 {[%cal Of5h5][%mdl 512] aiming for Rh5!} Qd7 (28... Qh4 29. Nf3) 29. R5f4) 28... Nxf3 (28... Nxd3 $11 29. cxd3 Rf8) 29. Qxf3 {[%cal Rf4f7]} Rf8 (29... f5 $2 30. Qf2 Qf6 31. exf5 $18) 30. Rf6 {And now Bc4 would win.} Rad8 $2 (30... a4 $16) 31. Bc4 $1 $18 {[%cal Rf6f7]} Qxe4 32. Rxf7+ Rxf7 33. Qxf7+ Kh8 {[%csl Gb7][%cal Re4g2]} 34. Qf6+ Kh7 {[%csl Gb7][%cal Re4g2] [#]} 35. Qf7+ (35. Rf2 $142 $1 Rd7 36. Bd3) 35... Kh8 {[%csl Gb7][%cal Re4g2] [#]} 36. Qf6+ ({White has to play} 36. Rg1 $1 $18 {Threatens to win with Qf6+.} Qh4 37. Qxb7 Qxc4 38. Qe7) 36... Kh7 $16 {[%csl Gb7][%cal Re4g2] [#] The board is on fire.} 37. Rf2 Rd7 ({Weaker is} 37... Rd1+ 38. Kh2 Rd7 39. Bd3) 38. Bd3 Qe8 {[#]} 39. h4 ({White should play} 39. b6 $1 $16) 39... h5 $1 $11 40. Qg5 $2 {[%mdl 8192] [#]} (40. b6 $11) 40... Rxd3 $1 $19 {[%mdl 512]} 41. cxd3 {[%mdl 4096] Endgame KQR-KQB} (41. Kg1 Rd7) 41... Qe1+ 42. Kh2 Qxf2 43. Qe7+ Kh6 {[%csl Gb7][%cal Rf2g2]} 44. Qxb7 Qxh4+ {KQ-KQ. Black mates.} 45. Kg1 Qd4+ 46. Kh2 b3 {[%cal Bb4b3,Bb3b2][%mdl 32]} 47. Qf7 Qd6+ 48. g3 b2 49. Qb3 Qe5 50. b6 Qe2+ {Weighted Error Value: White=0.73/Black=0.24 (precise)} 0-1

[Event "Svetozar Gligoric Masters 2022"]
[Site "Belgrade"]
[Date "2022.07.21"]
[Round "6.9"]
[White "Taspinar, Yanki"]
[Black "Makarian, Rudik"]
[Result "0-1"]
[ECO "E16"]
[WhiteElo "2311"]
[BlackElo "2533"]
[Annotator "TA"]
[PlyCount "106"]
[EventDate "2022.07.18"]
[EventCountry "SRB"]
[SourceTitle "playchess.com"]
[Source "ChessBase"]
[SourceQuality "1"]
[TimeControl "40/5400+30:900+30"]

{[%evp 19,106,8,4,-6,-22,-19,-13,-41,-27,-28,-30,-45,-30,-18,-13,-37,2,0,0,-20,0,-66,-72,-87,-77,-85,-94,-91,-70,-91,-83,-130,-18,-95,-94,-169,-158,-166,-166,-170,-166,-166,-166,-166,-167,-189,-156,-200,-216,-217,-217,-216,-151,-153,-146,-172,-161,-170,-158,-172,-157,-167,-178,-195,-160,-156,-156,-197,-197,-206,-197,-452,-458,-594,-594,-594,-594,-594,-594,-587,-587,-577,-572,-572,-572,-539,-529,-400,-383]} 1. d4 Nf6 2. c4 e6 3. Nf3 b6 4. g3 Bb7 5. Bg2 Bb4+ 6. Bd2 Be7 7. Nc3 c6 8. O-O d5 9. Bf4 O-O 10. Ne5 Nfd7 11. Qa4 {[#] E16: Queen's Indian: 4 g3 Bb7 5 Bg2 Bb4+.} a6 $146 ({Predecessor:} 11... Nxe5 12. Bxe5 Nd7 13. Bf4 a6 14. Qb3 b5 15. cxd5 cxd5 16. Rfc1 Qb6 17. e3 Rfc8 18. g4 Rc4 19. a4 b4 20. a5 Qd8 {0-1 (41) Sorin,A (2505)-Tiviakov,S (2625) Buenos Aires 1996}) 12. cxd5 cxd5 13. h4 {The position is equal.} b5 14. Qd1 Nxe5 15. Bxe5 Nc6 16. Bf4 Na5 17. Qd3 b4 18. Na4 Bc6 19. Nc5 Bb5 20. Qf3 (20. Qd2 $11) 20... Nc6 $15 21. Qe3 Bxc5 22. dxc5 e5 $1 23. Bxe5 {Strongly threatening Rfd1.} Re8 24. f4 f6 $1 $36 {[%mdl 2048] Black is on the roll.} 25. Rad1 Qe7 (25... Kh8 $17 26. Rxd5 (26. Bxd5 Qc8 $17) 26... Qc8) 26. Bxd5+ {This bishop pair is nice.} (26. Rxd5 $11 {keeps the balance.} fxe5 27. Rd6) 26... Kh8 $17 27. Bd4 ({Avoid the trap} 27. a4 $2 Bxa4 28. b3 Bb5 29. Bxc6 Bxc6 $19) (27. Bf3 $17) 27... Qxe3+ $19 28. Bxe3 Rxe3 29. Bf3 {[#]} Rxf3 $1 {[%mdl 512]} 30. exf3 Bxf1 31. Kxf1 {[%mdl 4096] Endgame KRN-KR} Kg8 32. Rd7 Rc8 33. b3 Na5 34. Rd4 Rxc5 35. Rxb4 Rc2 36. Ra4 {[#]} Nc6 37. Rxa6 Nd4 38. b4 {[#]} Rb2 $1 ({Worse is} 38... Nxf3 39. a4 $17) 39. a3 Nxf3 40. Rb6 Ra2 41. Ra6 Nd2+ 42. Kg1 Rb2 43. h5 h6 {aiming for ...Nc4.} 44. Ra8+ Kh7 {Threatens to win with ...Rb3.} 45. Kg2 $2 (45. Rb8) 45... Nc4+ 46. Kh3 Rb3 47. a4 Rxb4 48. a5 Ra4 49. a6 Nb6 50. Ra7 Ra5 51. Kh4 Nd5 52. Rd7 Nb4 53. a7 Nc6 {Weighted Error Value: White=0.24 (precise) /Black=0.11 (very precise)} 0-1

[Event "Svetozar Gligoric Masters 2022"]
[Site "Belgrade"]
[Date "2022.07.21"]
[Round "6.10"]
[White "Yordanov, Lachezar"]
[Black "Sedlak, Nikola"]
[Result "0-1"]
[ECO "D12"]
[WhiteElo "2316"]
[BlackElo "2480"]
[Annotator "TA"]
[PlyCount "68"]
[EventDate "2022.07.18"]
[EventCountry "SRB"]
[SourceTitle "playchess.com"]
[Source "ChessBase"]
[SourceQuality "1"]
[TimeControl "40/5400+30:900+30"]

{[%evp 13,68,28,32,25,29,21,37,47,32,27,31,27,37,46,38,33,48,39,39,49,46,27,30,36,46,0,0,-49,-48,-66,-85,-81,-86,-159,-110,-273,-258,-271,-258,-257,-270,-506,-500,-545,-537,-508,-498,-6293,-6214,-5635,-6215,-12833,-12827,-6170,-1895,-29998,-29999]} 1. d4 d5 2. c4 c6 3. Nf3 Nf6 4. e3 Bf5 5. Nc3 e6 6. Nh4 Bg6 7. Nxg6 hxg6 8. g3 {D12: Slav Defence: 3 Nf3 Nf6 4 e3 Bf5.} Nbd7 9. cxd5 exd5 10. Bg2 {White is slightly better.} Bb4 {[#]} 11. O-O $146 ({Predecessor:} 11. Bd2 Bxc3 12. Bxc3 Qe7 13. Qe2 Ne4 14. Bxe4 Qxe4 15. f3 Qe6 16. e4 Nb6 17. e5 {1-0 (56) Improta,G (1886)-Capaldo,S (1577) Napoli 2009}) 11... O-O 12. Qb3 a5 13. a3 Bxc3 14. bxc3 b5 15. a4 bxa4 16. Qxa4 Qc7 17. Qa2 Nb6 18. Re1 Rfe8 19. Bf1 (19. f3 $1 $14 {was preferrable.}) 19... g5 $11 20. c4 (20. e4 $11) 20... Nxc4 $15 21. Bxc4 dxc4 22. Qxc4 g4 23. Bb2 (23. e4 $142) 23... Qd7 ({Black should try} 23... Ne4 $1 {...Qd7 is the strong threat.} 24. d5 Qb6) 24. h3 $2 {Loses the game.} (24. d5 $17 cxd5 25. Qa4) 24... Ne4 $19 ({Not} 24... gxh3 25. Qe2 $17) 25. hxg4 {[#]} Ng5 26. Rec1 Qxg4 {And now ...Re6 would win.} 27. Qxc6 (27. d5 Qxc4 28. Rxc4 cxd5 29. Rca4) 27... Rac8 28. Qd5 Rcd8 {[%cal Bc8d8,Bd8d6,Bd6h6][%mdl 32]} 29. Qxa5 Rd6 30. Kf1 (30. Qb5 $142 Red8 31. Rc6 Nh3+ 32. Kg2 (32. Kf1 $2 Qf3 $19) 32... Qe4+ 33. f3 Qxc6 34. Qxc6 Rxc6 35. Kxh3) 30... Rh6 31. Qd5 {Prevents Rh1+.} Ne4 {( -> ...Qf3)} 32. Ra8 {[#]} Rxa8 $1 (32... Rh1+ $2 33. Kg2 Qh3+ 34. Kf3 $16) 33. Qxa8+ Kh7 {Strongly threatening ...Qf5.} 34. Rc8 Qd1+ {Weighted Error Value: White=1.05/Black=0.02 (flawless)} 0-1

[Event "Svetozar Gligoric Masters 2022"]
[Site "Belgrade"]
[Date "2022.07.21"]
[Round "6.11"]
[White "Atalik, Suat"]
[Black "Namitbir Singh Walia"]
[Result "1-0"]
[ECO "D85"]
[WhiteElo "2446"]
[BlackElo "2293"]
[Annotator "TA"]
[PlyCount "61"]
[EventDate "2022.07.18"]
[EventCountry "SRB"]
[SourceTitle "playchess.com"]
[Source "ChessBase"]
[SourceQuality "1"]
[TimeControl "40/5400+30:900+30"]

{[%evp 14,60,14,12,7,0,19,19,22,21,43,33,29,24,37,33,18,21,10,12,69,8,79,81,102,0,0,0,0,0,0,0,0,0,170,0,209,169,384,371,471,493,482,489,2001,1725,29997,29998,29999]} 1. d4 Nf6 2. c4 g6 3. Nc3 d5 4. cxd5 Nxd5 5. Bd2 Bg7 6. e4 Nxc3 7. Bxc3 O-O 8. Qd2 c5 {[%cal Rc5d4] D85: Exchange Grünfeld: Unusual White 7th moves and lines with 7 Nf3.} 9. d5 e6 10. Bc4 Qh4 {The position is equal.} 11. Qe3 $40 {[%mdl 128] Black needs to defend precisely.} exd5 12. Bxd5 {[#]} Na6 $146 ({Predecessor:} 12... Nd7 13. Nf3 Qe7 14. Bxg7 Kxg7 15. Rc1 Rb8 16. O-O b6 17. e5 Bb7 {½-½ (17) Galunova,T (2164)-Hoffmann,M (2462) Tegernsee 2017}) 13. Nf3 Qe7 14. Bxg7 Kxg7 15. Qc3+ Kg8 16. O-O Nb4 ({Black should try} 16... Nc7 $11) 17. Bb3 {White is more active.} (17. Rfe1 $14) 17... b6 (17... Rd8 $11) 18. Ne5 $16 {[%cal Bf3e5,Be5g4,Bg4f2,Bf2e4,Be4c3][%mdl 32]} Be6 {[#]} 19. f4 (19. a3 $1 $16 {Strongly threatening Bxe6.} Na6 20. Rad1) 19... f6 $11 20. Ng4 {Threatens to win with Bxe6+.} Kg7 ({Much less strong is} 20... c4 21. f5 (21. Bxc4 Qc5+ 22. Ne3 Bxc4 $14) 21... Qc5+ 22. Kh1 cxb3 23. fxe6 Qxc3 24. bxc3 $14) 21. f5 gxf5 ({Don't play} 21... Bxb3 22. e5 fxe5 23. f6+ Rxf6 24. Nxf6 $16) 22. exf5 Bxb3 23. axb3 h5 $2 {[#]} (23... Kh8 $11) 24. Rfe1 $2 (24. Qg3 $1 $18 hxg4 25. Rae1) 24... Qb7 $2 (24... Qd7 $1 $11 25. Ne3 Rad8) 25. Nf2 Rf7 $2 (25... Rfe8) 26. Ne4 $18 {aiming for Nd6.} Qc6 {Inhibits Nd6.} 27. Rad1 {Prevents Rd8. Hoping for Rd6.} Nd5 28. Qf3 Rh8 (28... Re7 $142 29. Qxh5 Rg8) 29. Nc3 Nb4 30. Qg3+ Kh7 31. Qg6# {Weighted Error Value: White=0.18 (very precise) /Black=0.75} 1-0